Cogmind - Beta 10.2 @@@ ROGUE MODE // 2021.08.16 @ 15:36:23 Player: Gilgameshx13 Result: Destroyed by H-55 Commando with Gauss Rifle Performance ------------- Evolutions (2) 1000 Regions Visited (4) 800 Robots Destroyed (10) 50 Value Destroyed (263) 263 Prototype IDs (1) 20 Alien Tech Used (0) 0 Bonus (0) 0 TOTAL SCORE: 2133 Bonus ------- None Cogmind --------- Core Integrity 0/550 Matter 300/300 Energy 100/100 System Corruption 1% Temperature Cool (9) Movement Core (50) Location -8/Storage Parts ------- > --- POWER (1) -------- (None) > --- PROPULSION (4) --- (None) > --- UTILITY (4) ------ (None) > --- WEAPON (2) ------- (None) > --- INVENTORY (4) ---- Ion Engine Cold Fusion Reactor Wheel Advanced EMP Blaster Peak State ------------ > --- POWER ------------ Light Deuterium Engine > --- PROPULSION ------- Aluminum Leg Aluminum Leg > --- UTILITY ---------- Small Storage Unit Terrain Scanner Light Armor Plating Hardened Light Armor Plating > --- WEAPON ----------- Pulse Rifle Pulse Rifle > --- INVENTORY -------- Ion Engine Wheel Hover Unit Advanced Weight Redist. System Hardened Light Armor Plating Small Laser [Rating: 16] Favorites ----------- Power Light Deuterium Engine Engine Light Deuterium Engine Propulsion Aluminum Leg Leg Aluminum Leg Hover Unit Hover Unit Flight Unit Cesium-ion Thruster Utility Small Storage Unit Device Terrain Scanner Storage Small Storage Unit Protection Hardened Light Armor Plating Weapon Small Laser Energy Gun Small Laser Ballistic Gun Light Assault Rifle Launcher Advanced EMP Blaster Build | -11 -10 -9 -8 -8 ------- Run | Scr Mat Mat Mat Sto Slots Evolved 4 | . . 2 2 . Power . | . . . . . Propulsion 2 | . . . 2 . Utility 2 | . . 2 . . Weapon . | . . . . . Parts Attached 19 | 6 1 9 2 1 Power 2 | 1 . 1 . . Engine 2 | 1 . 1 . . Core . | . . . . . Reactor . | . . . . . Propulsion 4 | 2 . 1 1 . Treads . | . . . . . Leg 2 | 2 . . . . Wheel . | . . . . . Hover 1 | . . 1 . . Flight 1 | . . . 1 . Utility 6 | 1 1 3 1 . Device 2 | . 1 . 1 . Storage 1 | 1 . . . . Processor . | . . . . . Hackware . | . . . . . Protection 3 | . . 3 . . Artifact . | . . . . . Weapon 7 | 2 . 4 . 1 Energy Gun 5 | 1 . 4 . . Energy Cannon . | . . . . . Ballistic Gun 1 | 1 . . . . Ballistic Cannon . | . . . . . Launcher 1 | . . . . 1 Special Weapon . | . . . . . Impact Weapon . | . . . . . Slashing Weapon . | . . . . . Piercing Weapon . | . . . . . Special Melee Weapon . | . . . . . Unidentified Prototypes 1 | . . . . 1 Parts Lost 13 | . 1 5 1 6 Power 2 | . 1 . 1 . Propulsion 4 | . . 3 . 1 Utility 5 | . . 1 . 4 Weapon 2 | . . 1 . 1 Highest Loss Streak 7 | . 1 3 1 7 Average Slot Usage (%) 69 | . 93 85 46 20 Engine 8 | . 12 8 9 . Leg 11 | . 28 13 . . Device 9 | . 8 11 9 7 Storage 10 | . 14 11 9 6 Protection 12 | . . 20 17 3 Energy Gun 11 | . 14 18 1 . Ballistic Gun 4 | . 14 2 . . Naked Turns 55 | . . . . 55 Heaviest Build 24 | 9 10 24 21 16 Greatest Support 20 | 20 20 20 15 15 Greatest Overweight (x) 7 | 1 . 7 6 5 Average Overweight (x) 1 | . . 1 4 . Largest Inventory Capacity 6 | 6 6 6 6 6 Average Capacity 5 | 5 6 6 6 5 Most Carried 6 | 4 6 6 5 6 Average Carried 4 | 2 5 4 4 4 Final Capacity 6 | 6 6 6 6 4 Final Carried 6 | 4 6 3 4 4 Class Distribution -------------------- 100% | Mutant Dominant Class ---------------- Mutant | -10/Materials Mutant | -9/Materials Mutant | -8/Materials Mutant | -8/Storage Resources | -11 -10 -9 -8 -8 ----------- Run | Scr Mat Mat Mat Sto Matter Collected 439 | 229 10 148 . 52 Remotely . | . . . . . Salvage Created 244 | . 33 211 . . Parts 14 | . 4 10 . . Haulers Intercepted . | . . . . . Recyclers Shooed . | . . . . . Parts Field Recycled . | . . . . . Retrieved Matter . | . . . . . Parts Self-Destructed . | . . . . . Prevented . | . . . . . Kills | -11 -10 -9 -8 -8 ------- Run | Scr Mat Mat Mat Sto Combat Hostiles Destroyed 9 | . 3 6 . . Guns 9 | . 3 6 . . Classes Destroyed 3 | . 1 2 . . Watcher 1 | . . 1 . . Swarmer 3 | . 3 . . . Grunt 6 | . . 6 . . Best Kill Streak 3 | . 2 3 . . Combat Bots Only 3 | . 2 3 . . Max Kills in Single Turn 2 | . 1 2 . . Gunslinging 1 | . . 1 . . Exploded . | . . . . . Melee . | . . . . . Uniques/NPCs Destroyed . | . . . . . Combat | -11 -10 -9 -8 -8 -------- Run | Scr Mat Mat Mat Sto Damage Taken 1817 | . 187 683 64 883 Core 727 | . 25 132 36 534 Absorbed by Shields . | . . . . . Core Remaining (%) 85 | 100 90 67 . . Volleys Fired 45 | . 14 30 . 1 Largest 2 | . 2 2 . 1 Hottest 126 | . 60 126 . 36 Shots Fired 72 | . 28 43 . 1 Gun 71 | . 28 43 . . Cannon . | . . . . . Launcher 1 | . . . . 1 Special . | . . . . . Kinetic 15 | . 14 1 . . Thermal 56 | . 14 42 . . Explosive . | . . . . . Electromagnetic 1 | . . . . 1 Robot Hit Streak 6 | . 4 6 . 1 Robot Miss Streak 7 | . 7 3 . . Penetration Max . | . . . . . Secondary Targets 3 | . 1 2 . . Max Gunslinging Chain 1 | . 1 1 . . Shots Hit Robots 37 | . 11 25 . 1 Core Hits 20 | . 3 9 . 8 Critical Hits . | . . . . . Critical Kills . | . . . . . Critical Parts Destroyed . | . . . . . Melee Attacks . | . . . . . Impact . | . . . . . Slashing . | . . . . . Piercing . | . . . . . Sneak Attacks . | . . . . . Combat Hostiles . | . . . . . Follow-up Attacks . | . . . . . Damage Inflicted 587 | . 90 440 . 57 Guns 530 | . 90 440 . . Cannons . | . . . . . Explosions 24 | . . . . 24 Melee . | . . . . . Ramming 33 | . . . . 33 Kinetic 26 | . 26 . . . Thermal 504 | . 64 440 . . Explosive . | . . . . . Electromagnetic 24 | . . . . 24 Impact . | . . . . . Slashing . | . . . . . Piercing . | . . . . . Highest Corruption 1 | . . . . 1 Average Corruption 1 | . . . . 1 Corruption Purged . | . . . . . Effects 1 | . . . . 1 Energy Discharges 1 | . . . . 1 Overload Shots . | . . . . . Overflow Damage . | . . . . . Projectiles . | . . . . . Explosions . | . . . . . Melee . | . . . . . Knockbacks . | . . . . . Impact . | . . . . . Kinetic . | . . . . . Secondary . | . . . . . Self-Inflicted Damage 39 | . . . . 39 Shots 1 | . . . . 1 Rammed 20 | . . . . 20 Targets Rammed 20 | . . . . 20 Kicked . | . . . . . Crushed . | . . . . . Highest Temperature 558 | . 40 558 . . Average Temperature 246 | . 20 289 . . Received Heat Transfer 702 | . . 369 9 324 Effects 27 | . . 27 . . Shutdowns 5 | . . 5 . . Energy Bleed 4 | . . 4 . . Interference 2 | . . 2 . . Matter Decay 2 | . . 2 . . Short Circuit 3 | . . 3 . . Damage (minor) 4 | . . 4 . . Damage (major) 7 | . . 7 . . Siege Activations . | . . . . . Robots Corrupted . | . . . . . Combat Hostiles . | . . . . . Parts Fried . | . . . . . Impact Corruptions . | . . . . . Robots Melted . | . . . . . Combat Hostiles . | . . . . . Parts Melted . | . . . . . Heat Transferred 1114 | . 150 964 . . Parts Sabotaged . | . . . . . Parts Stolen . | . . . . . Parts Stripped . | . . . . . Power Chain Reactions . | . . . . . Missiles Intercepted . | . . . . . Alert | -11 -10 -9 -8 -8 ------- Run | Scr Mat Mat Mat Sto Peak Influence 232 | . 60 232 30 110 Initial 25 | . . 25 15 8 Average 58 | . 10 133 15 17 Maximum Alert Level 1 | . . 1 . . Low Security (%) 85 | 100 100 62 100 100 Level 1 14 | . . 37 . . Level 2 . | . . . . . Level 3 . | . . . . . Level 4 . | . . . . . Level 5 . | . . . . . High Security . | . . . . . Max Security . | . . . . . Squads Dispatched 6 | . . 3 1 2 Investigation . | . . . . . Extermination . | . . . . . Reinforcement 6 | . . 3 1 2 Assault . | . . . . . Garrison . | . . . . . Intercept . | . . . . . Construction Impeded . | . . . . . Haulers Reinforced . | . . . . . Stealth | -11 -10 -9 -8 -8 --------- Run | Scr Mat Mat Mat Sto Distress Signals 4 | . . 2 1 1 Communications Jammed . | . . . . . Distress Signals . | . . . . . Times Spotted 40 | . 5 14 3 18 Peak Tracking Total 11 | . 6 4 3 11 Tactical Retreats 4 | . . 2 . 2 Traps | -11 -10 -9 -8 -8 ------- Run | Scr Mat Mat Mat Sto Traps Triggered . | . . . . . Indirectly . | . . . . . Trap Hack Attempts . | . . . . . Triggered . | . . . . . Disarmed . | . . . . . Reprogrammed . | . . . . . Reused . | . . . . . Traps Extracted . | . . . . . Installed . | . . . . . Triggered . | . . . . . Machines | -11 -10 -9 -8 -8 ---------- Run | Scr Mat Mat Mat Sto Machines Disabled . | . . . . . Max in Single Turn . | . . . . . Machines Sabotaged . | . . . . . Garrisons Compromised . | . . . . . Overloaded Fab Kills . | . . . . . Fab Network Shutdowns . | . . . . . Hacking | -11 -10 -9 -8 -8 --------- Run | Scr Mat Mat Mat Sto Machines Accessed . | . . . . . Terminals . | . . . . . Fabricators . | . . . . . Repair Stations . | . . . . . Recycling Units . | . . . . . Scanalyzers . | . . . . . Garrison Access . | . . . . . Total Hacks . | . . . . . Successful . | . . . . . Failed . | . . . . . Catastrophic . | . . . . . Database Lockouts . | . . . . . Manual . | . . . . . Terminals . | . . . . . Fabricators . | . . . . . Repair Stations . | . . . . . Recycling Units . | . . . . . Scanalyzers . | . . . . . Garrison Access . | . . . . . Terminal Hacks . | . . . . . Fabricator Hacks . | . . . . . Repair Station Hacks . | . . . . . Recycling Unit Hacks . | . . . . . Scanalyzer . | . . . . . Garrison Access Hacks . | . . . . . Unauthorized Hacks . | . . . . . Terminals . | . . . . . Fabricators . | . . . . . Repair Stations . | . . . . . Recycling Units . | . . . . . Scanalyzers . | . . . . . Garrison Access . | . . . . . Data Cores Recovered . | . . . . . Used . | . . . . . Hacking Detections . | . . . . . Full Trace Events . | . . . . . Feedback Events . | . . . . . Feedback Blocked . | . . . . . Robot Schematics Acquired . | . . . . . Robots Built . | . . . . . Matter . | . . . . . Time . | . . . . . Total Robot Build Rating . | . . . . . Part Schematics Acquired . | . . . . . Parts Built . | . . . . . Matter . | . . . . . Time . | . . . . . Total Part Build Rating . | . . . . . Parts Repaired . | . . . . . Time . | . . . . . Parts Recycled . | . . . . . Recycled Matter . | . . . . . Retrieved Matter . | . . . . . Retrieved Components . | . . . . . Parts Scanalyzed . | . . . . . Part Schematics Acquired . | . . . . . Parts Damaged . | . . . . . Bothacking | -11 -10 -9 -8 -8 ------------ Run | Scr Mat Mat Mat Sto Used RIF Installer . | . . . . . Robots Hacked . | . . . . . Non-combat . | . . . . . Combat . | . . . . . Robot Hacks Applied . | . . . . . Relay Couplers Released . | . . . . . Robots Rewired . | . . . . . Allies Hacked . | . . . . . Hacks Repelled . | . . . . . Allies | -11 -10 -9 -8 -8 -------- Run | Scr Mat Mat Mat Sto Total Allies . | . . . . . Largest Group . | . . . . . Highest-Rated Group . | . . . . . Highest-Rated Ally . | . . . . . Total Orders . | . . . . . Ally Attacks . | . . . . . Total Damage . | . . . . . Kills . | . . . . . Allies Corrupted . | . . . . . Allies Melted . | . . . . . Intel | -11 -10 -9 -8 -8 ------- Run | Scr Mat Mat Mat Sto Robot Analysis Total . | . . . . . Derelict Logs Recovered . | . . . . . Drone Launches . | . . . . . Drone Recoveries . | . . . . . Exploration | -11 -10 -9 -8 -8 ------------- Run | Scr Mat Mat Mat Sto Turns Passed 1146 | 74 243 437 241 151 Spaces Moved 644 | 55 167 177 86 159 Core 258 | 15 . 41 65 137 Treads . | . . . . . Legs 340 | 40 167 133 . . Wheels . | . . . . . Hover 3 | . . 3 . . Flight 43 | . . . 21 22 Fastest Speed 40 | 50 120 120 40 40 Average Speed 146 | 103 120 194 274 65 Slowest Speed 400 | 120 120 400 350 300 Overloaded Moves . | . . . . . Propulsion Burnouts . | . . . . . Robots Hopped 3 | . . . 2 1 Cave-ins Triggered . | . . . . . Exploration Rate (%) 22 | 3 35 24 11 40 Regions Visited 4 Branch Regions 1 Pre-discovered Areas . | . . . . . Known Exits Taken . | . . . . . Unknown Exits Taken 4 | 1 1 1 1 . Scrap Searched . | . . . . . Spaces Dug . | . . . . . Terrain Destroyed . | . . . . . Melee . | . . . . . Projectile . | . . . . . AOE . | . . . . . Terrain Rammed . | . . . . . Walls Destroyed . | . . . . . Machines Disabled . | . . . . . Actions | -11 -10 -9 -8 -8 --------- Run | Scr Mat Mat Mat Sto Total 771 | 72 184 231 88 196 Wait 9 | . . . . 9 Move 634 | 54 166 176 81 157 Hop 3 | . . . 2 1 Pick Up 30 | 11 3 9 2 5 Fast Attach . | . . . . . Attach 16 | 6 1 7 1 1 Detach . | . . . . . Swap 3 | . . 2 1 . Drop 11 | 1 . 7 1 2 Fire 45 | . 14 30 . 1 Melee . | . . . . . Ram 20 | . . . . 20 Kick . | . . . . . Crush . | . . . . . Escape Stasis . | . . . . . Rewire . | . . . . . Trap . | . . . . . Miscellaneous . | . . . . . Route ------- -11/Scrapyard -10/Materials -9/Materials -8/Materials -8/Storage History --------- Turn | Location | Event 25 | -11/Scrapyard | Discovered new exit (range 16) 75 | -11/Scrapyard | Entered Materials 257 | -10/Materials | Discovered new exit (range 14) 318 | -10/Materials | Build established: Mutant 318 | -10/Materials | Entered another Materials area 318 | -9/Materials | Evolved 2 slots: Utility x2 628 | -9/Materials | Lost 3 parts (3n) 729 | -9/Materials | Discovered new exit (range 9) 755 | -9/Materials | Entered another Materials area 755 | -8/Materials | Evolved 2 slots: Propulsion x2 992 | -8/Materials | Discovered new exit (range 9) 996 | -8/Materials | Entered Storage 1081 | -8/Storage | Core integrity fell below 50% 1094 | -8/Storage | Core integrity fell below 20% 1123 | -8/Storage | Lost 7 parts (1p1n4u1w) 1147 | -8/Storage | Destroyed by H-55 Commando with Gauss Rifle Last Messages --------------- Destabilizing: Short circuit. Slammed into G-47 Trooper. Acquired Com. Matter Pod. Acquired Hacking Suite. Broken Adv. Weight Redist. System destroyed. Slammed into G-47 Trooper. Destabilizing: Core damaged (-27). Slammed into G-47 Trooper. Sml. Storage Unit destroyed. Slammed into Y-45 Defender. K-01 Serf cleans the Holding Depot. O-16 Technician: "IFF HANDSHAKE FAILED. SECURING TERMINAL." K-01 Serf collects debris. ALERT: Hostiles spotted, dispatching reinforcements to Terminal S011. K-01 Serf collects debris. W-25 Informer sends out distress signal. Dropped Com. Matter Pod. Acquired Prototype Reactor. K-01 Serf cleans the Holding Depot. Penetrated by Slug. Map ----- +----------------------------------------------------+ | ??????????????????????????? ??????????????????# #? | | ??????????????????????????# ??????????????????# #? | | ??????????????????????????# ??????????????????# #? | | ??????????????????????????# ??????????????????# #? | | ??????????????????????????# ??????????????????# ## | | ??????????????????????????# ??????????????????# | | ??????????????????????????# ???####???????????# | | ??????????????????????????# ###?] ]???????????# | | ??????????????????????????# #?]] ???????????# | | ??????????????????????????# #?? ???????????# | | ??????????????????????????# #?? ???????????# | | ??????????????#???????????# ###" "##????????# | | ????????????? #???????????# ## T?????????# | | ????????????? #???????????# #?? #?????????# | | ???????????? #???????????+ #####/########### | | ???????????? ! ??????????## | | ???????????? #??????????#T | | ??????????"" #??????????## | | ???????? """ #???????????# ########+# | | ???????? #???????????# """"" #?????? | | ?????????""" ????????????# """"" #?????? | | ?????????""" ????????????# """"" #?????""" | | ??????????"" ?????????????# """"" #?????""" | | ?????????? ?????????????# +???? """ | | ??????#####+###############g #???? """ | | ??????# @g #???" ?"" | | ??????# g a #??? ???? | | ??????# ggr !!! #????????# | | ??????#+#+############+#### w !!! #????????? | | ???????? ????????# #??# !! #????????? | | ???????? ????????# !#??# h #????????? | | ??????? ???????#** #??# a #????????? | | ??????? ???????#***#??# #????????? | | ??????#######??????#####??# #????????? | | ?????????????????????????? ????????? | | ?????????????????????????? ????????? | | ?????????????????????????? ?????????? | | ??????????????????????????#+##+###" "##??????????? | | ???????????????????????????????????G"????????????? | | ?????????????????????????????????????????????????? | | ?????????????????????????????????????????????????? | | ?????????????????????????????????????????????????? | | ?????????????????????????????????????????????????? | | ?????????????????????????????????????????????????? | | ?????????????????????????????????????????????????? | | ?????????????????????????????????????????????????? | | ?????????????????????????????????????????????????? | | | | | | | +----------------------------------------------------+ Best States ------------- Heat Dissipation 31 Energy Generation 14 Energy Capacity 140 Matter Stores 300 Matter Capacity 300 Sight Range 16 Terrain Scan Range 14 Terrain Scan Density 10 Additional Mass Support 9 Armor Coverage 300 Evasion (%) 62 Item Schematics ----------------- None Robot Schematics ------------------ None Fabricated ------------ Nothing Alien Tech Used ----------------- None Achievements -------------- None Challenges ------------ None Game ------ Seed BurstBiometalCore Manual? 0 Play Time 00:11:51 Cumulative 18.3 hours Start 2021.08.16 @ 15:26:41 End 2021.08.16 @ 15:36:23 Sessions 1 Manual Loads 0 Difficulty Rogue Special Mode None Game No. 45 Rogue 25 Adventurer 20 Explorer 0 Win Type - Total 1 Types 1/0/0/0/0/0/0/0/0 Lore% 18 Gallery% 40 Achievement% 27 Wizard Run 0 Options --------- ASCII 0 Keyboard 0 Movement Arrows Keybinds 0 Fullscreen 1 Font 18/SmallcapsGlow Map View 76x50 Tactical HUD 0 Map Filters NONE Filters NONE Steam 1 RUN: cd62bb32-e015-47fc-aab2-f5b1d58fe800